[Event "Titled Tuesday Blitz August 09 Early 2022"]
[White "Pulpan, Jakub"]
[Black "Pranav Anand"]
[WhiteFideId "302759"]
[BlackFideId "46626786"]
[WhiteElo "2451"]
[BlackElo "2300"]
[Result "1/2-1/2"]
[Round "09"]
[TimeControl "180+1"]
[Date "2022.08.09"]
[WhiteClock "0:00:14"]
[BlackClock "0:00:17"]

1. Nf3 {[%clk 0:03:00]}  Nf6 {[%clk 0:02:56]} 2. b3 {[%clk 0:02:57]}  b6 {[%clk 0:02:56]} 3. g3 {[%clk 0:02:57]}  Bb7 {[%clk 0:02:56]} 4. Bg2 {[%clk 0:02:58]}  a5 {[%clk 0:02:56]} 5. a4 {[%clk 0:02:56]}  e6 {[%clk 0:02:55]} 6. Bb2 {[%clk 0:02:56]}  Be7 {[%clk 0:02:55]} 7. O-O {[%clk 0:02:56]}  O-O {[%clk 0:02:56]} 8. d3 {[%clk 0:02:55]}  d5 {[%clk 0:02:55]} 9. e4 {[%clk 0:02:55]}  dxe4 {[%clk 0:02:53]} 10. Nfd2 {[%clk 0:02:55]}  Nbd7 {[%clk 0:02:52]} 11. Nc3 {[%clk 0:02:54]}  Nc5 {[%clk 0:02:51]} 12. Ndxe4 {[%clk 0:02:54]}  Nfxe4 {[%clk 0:02:51]} 13. Nxe4 {[%clk 0:02:54]}  Nxe4 {[%clk 0:02:49]} 14. Bxe4 {[%clk 0:02:55]}  Bd5 {[%clk 0:02:32]} 15. Qf3 {[%clk 0:02:50]}  Bxe4 {[%clk 0:02:22]} 16. Qxe4 {[%clk 0:02:41]}  Bf6 {[%clk 0:02:20]} 17. Be5 {[%clk 0:02:38]}  Bxe5 {[%clk 0:02:18]} 18. Qxe5 {[%clk 0:02:39]}  Qd7 {[%clk 0:02:19]} 19. Rfe1 {[%clk 0:02:38]}  Qc6 {[%clk 0:02:18]} 20. Qb2 {[%clk 0:02:35]}  Rad8 {[%clk 0:02:18]} 21. Re4 {[%clk 0:02:35]}  Rd5 {[%clk 0:02:18]} 22. Rc4 {[%clk 0:02:33]}  Qd6 {[%clk 0:02:17]} 23. Re1 {[%clk 0:02:33]}  h5 {[%clk 0:02:15]} 24. h4 {[%clk 0:02:33]}  Rd8 {[%clk 0:02:13]} 25. b4 {[%clk 0:02:26]}  axb4 {[%clk 0:02:13]} 26. Rxb4 {[%clk 0:02:27]}  Ra5 {[%clk 0:02:12]} 27. Rc4 {[%clk 0:02:11]}  Rda8 {[%clk 0:02:08]} 28. Qc3 {[%clk 0:02:11]}  c5 {[%clk 0:01:46]} 29. Qb3 {[%clk 0:02:06]}  Qc6 {[%clk 0:01:37]} 30. Rb1 {[%clk 0:01:51]}  R8a6 {[%clk 0:01:37]} 31. d4 {[%clk 0:01:50]}  Qd5 {[%clk 0:01:30]} 32. dxc5 {[%clk 0:01:48]}  bxc5 {[%clk 0:01:31]} 33. Qc3 {[%clk 0:01:40]}  Kh7 {[%clk 0:01:21]} 34. Re1 {[%clk 0:01:36]}  Ra8 {[%clk 0:00:59]} 35. Kh2 {[%clk 0:01:27]}  Qf5 {[%clk 0:00:49]} 36. Rf4 {[%clk 0:01:24]}  Qg6 {[%clk 0:00:49]} 37. Re5 {[%clk 0:01:20]}  Rxa4 {[%clk 0:00:49]} 38. Rg5 {[%clk 0:01:18]}  Ra3 {[%clk 0:00:24]} 39. Qxc5 {[%clk 0:01:04]}  R3a5 {[%clk 0:00:22]} 40. Qxa5 {[%clk 0:00:46]}  Rxa5 {[%clk 0:00:23]} 41. Rxa5 {[%clk 0:00:47]}  Qxc2 {[%clk 0:00:20]} 42. Rxh5+ {[%clk 0:00:46]}  Kg8 {[%clk 0:00:21]} 43. Re5 {[%clk 0:00:40]}  Qa2 {[%clk 0:00:20]} 44. Re1 {[%clk 0:00:35]}  f6 {[%clk 0:00:19]} 45. Kg1 {[%clk 0:00:35]}  e5 {[%clk 0:00:19]} 46. Rfe4 {[%clk 0:00:36]}  Kh7 {[%clk 0:00:20]} 47. R4e2 {[%clk 0:00:34]}  Qc4 {[%clk 0:00:19]} 48. f3 {[%clk 0:00:32]}  Qd4+ {[%clk 0:00:19]} 49. Kg2 {[%clk 0:00:32]}  Kg6 {[%clk 0:00:20]} 50. Re4 {[%clk 0:00:33]}  Qb2+ {[%clk 0:00:20]} 51. R1e2 {[%clk 0:00:33]}  Qb3 {[%clk 0:00:20]} 52. Rg4+ {[%clk 0:00:33]}  Kh6 {[%clk 0:00:20]} 53. Rge4 {[%clk 0:00:33]}  Qd5 {[%clk 0:00:21]} 54. Ra4 {[%clk 0:00:33]}  Qd7 {[%clk 0:00:21]} 55. Rea2 {[%clk 0:00:31]}  Qd5 {[%clk 0:00:20]} 56. Ra5 {[%clk 0:00:28]}  Qd3 {[%clk 0:00:20]} 57. R5a4 {[%clk 0:00:26]}  Qb3 {[%clk 0:00:19]} 58. Ra8 {[%clk 0:00:25]}  Qd5 {[%clk 0:00:18]} 59. Rh8+ {[%clk 0:00:25]}  Kg6 {[%clk 0:00:19]} 60. h5+ {[%clk 0:00:19]}  Kg5 {[%clk 0:00:17]} 61. Re2 {[%clk 0:00:19]}  Qd7 {[%clk 0:00:16]} 62. Rh7 {[%clk 0:00:15]}  Qd3 {[%clk 0:00:16]} 63. Rxg7+ {[%clk 0:00:15]}  Kh6 {[%clk 0:00:17]} 64. Rg6+ {[%clk 0:00:09]}  Kxh5 {[%clk 0:00:17]} 65. Rxf6 {[%clk 0:00:10]}  Qxe2+ {[%clk 0:00:18]} 66. Kh3 {[%clk 0:00:10]}  Kg5 {[%clk 0:00:18]} 67. Rf8 {[%clk 0:00:09]}  Qf1+ {[%clk 0:00:18]} 68. Kh2 {[%clk 0:00:10]}  Qf2+ {[%clk 0:00:18]} 69. Kh3 {[%clk 0:00:10]}  Qg1 {[%clk 0:00:19]} 70. f4+ {[%clk 0:00:10]}  exf4 {[%clk 0:00:18]} 71. gxf4+ {[%clk 0:00:10]}  Kh6 {[%clk 0:00:18]} 72. Rf6+ {[%clk 0:00:09]}  Kg7 {[%clk 0:00:18]} 73. Rf5 {[%clk 0:00:10]}  Qh1+ {[%clk 0:00:18]} 74. Kg3 {[%clk 0:00:10]}  Qg1+ {[%clk 0:00:18]} 75. Kh3 {[%clk 0:00:10]}  Qf1+ {[%clk 0:00:18]} 76. Kg3 {[%clk 0:00:09]}  Qd3+ {[%clk 0:00:18]} 77. Kg4 {[%clk 0:00:09]}  Kg6 {[%clk 0:00:19]} 78. Rg5+ {[%clk 0:00:09]}  Kf6 {[%clk 0:00:19]} 79. Re5 {[%clk 0:00:10]}  Qf1 {[%clk 0:00:19]} 80. Kg3 {[%clk 0:00:10]}  Qg1+ {[%clk 0:00:19]} 81. Kf3 {[%clk 0:00:11]}  Qd1+ {[%clk 0:00:19]} 82. Kg3 {[%clk 0:00:11]}  Qd3+ {[%clk 0:00:19]} 83. Kf2 {[%clk 0:00:09]}  Kg6 {[%clk 0:00:18]} 84. Rg5+ {[%clk 0:00:10]}  Kf6 {[%clk 0:00:19]} 85. Re5 {[%clk 0:00:11]}  Kf7 {[%clk 0:00:19]} 86. Rg5 {[%clk 0:00:10]}  Ke6 {[%clk 0:00:19]} 87. Re5+ {[%clk 0:00:11]}  Kd6 {[%clk 0:00:19]} 88. Rg5 {[%clk 0:00:12]}  Qe4 {[%clk 0:00:19]} 89. Kg3 {[%clk 0:00:12]}  Qe3+ {[%clk 0:00:19]} 90. Kg4 {[%clk 0:00:12]}  Qg1+ {[%clk 0:00:19]} 91. Kf3 {[%clk 0:00:12]}  Qf1+ {[%clk 0:00:19]} 92. Ke3 {[%clk 0:00:12]}  Ke6 {[%clk 0:00:19]} 93. Re5+ {[%clk 0:00:12]}  Kf6 {[%clk 0:00:20]} 94. Rg5 {[%clk 0:00:13]}  Kf7 {[%clk 0:00:19]} 95. Rf5+ {[%clk 0:00:12]}  Ke6 {[%clk 0:00:19]} 96. Re5+ {[%clk 0:00:13]}  Kd6 {[%clk 0:00:20]} 97. Rg5 {[%clk 0:00:13]}  Qe1+ {[%clk 0:00:17]} 98. Kf3 {[%clk 0:00:13]}  Qf1+ {[%clk 0:00:17]} 99. Ke3 {[%clk 0:00:14]} 1/2-1/2


[Site "https://www.chess.com"]

[Event "Titled Tuesday Blitz August 09 Early 2022"]
[White "Quirke, Jeffrey"]
[Black "Sarkar, Justin"]
[WhiteFideId "2013029"]
[BlackFideId "2010011"]
[WhiteElo "2222"]
[BlackElo "2076"]
[Result "0-1"]
[Round "09"]
[TimeControl "180+1"]
[Date "2022.08.09"]
[WhiteClock "0:00:02"]
[BlackClock "0:00:01"]

1. d4 {[%clk 0:03:00]}  Nf6 {[%clk 0:02:51]} 2. Nf3 {[%clk 0:02:58]}  d5 {[%clk 0:02:46]} 3. g3 {[%clk 0:02:45]}  e6 {[%clk 0:02:27]} 4. Bg2 {[%clk 0:02:41]}  c6 {[%clk 0:02:22]} 5. O-O {[%clk 0:02:40]}  Nbd7 {[%clk 0:02:17]} 6. b3 {[%clk 0:02:32]}  Be7 {[%clk 0:02:14]} 7. Bb2 {[%clk 0:02:30]}  O-O {[%clk 0:02:13]} 8. c4 {[%clk 0:02:29]}  b6 {[%clk 0:02:07]} 9. Nbd2 {[%clk 0:02:28]}  Bb7 {[%clk 0:02:06]} 10. Qc2 {[%clk 0:02:14]}  Rc8 {[%clk 0:01:57]} 11. Rad1 {[%clk 0:02:13]}  c5 {[%clk 0:01:49]} 12. dxc5 {[%clk 0:02:03]}  Nxc5 {[%clk 0:01:41]} 13. Qb1 {[%clk 0:01:54]}  Qd7 {[%clk 0:00:42]} 14. Ne5 {[%clk 0:01:51]}  Qc7 {[%clk 0:00:39]} 15. Rc1 {[%clk 0:01:31]}  dxc4 {[%clk 0:00:34]} 16. Ndxc4 {[%clk 0:01:21]}  Bxg2 {[%clk 0:00:32]} 17. Kxg2 {[%clk 0:01:22]}  Qb7+ {[%clk 0:00:31]} 18. Kg1 {[%clk 0:01:22]}  Rfd8 {[%clk 0:00:30]} 19. Rfd1 {[%clk 0:01:20]}  h6 {[%clk 0:00:16]} 20. h4 {[%clk 0:01:04]}  Rd5 {[%clk 0:00:13]} 21. Ne3 {[%clk 0:00:54]}  Rxd1+ {[%clk 0:00:11]} 22. Rxd1 {[%clk 0:00:54]}  Rd8 {[%clk 0:00:11]} 23. Rxd8+ {[%clk 0:00:50]}  Bxd8 {[%clk 0:00:12]} 24. Qd1 {[%clk 0:00:29]}  Be7 {[%clk 0:00:11]} 25. b4 {[%clk 0:00:12]}  Nce4 {[%clk 0:00:09]} 26. a3 {[%clk 0:00:12]}  Nd6 {[%clk 0:00:07]} 27. Qd3 {[%clk 0:00:07]}  Nde8 {[%clk 0:00:05]} 28. g4 {[%clk 0:00:07]}  Qd5 {[%clk 0:00:04]} 29. Nxd5 {[%clk 0:00:06]}  Nxd5 {[%clk 0:00:04]} 30. e3 {[%clk 0:00:05]}  Bf6 {[%clk 0:00:03]} 31. g5 {[%clk 0:00:04]}  hxg5 {[%clk 0:00:01]} 32. hxg5 {[%clk 0:00:04]}  Bxg5 {[%clk 0:00:02]} 33. f4 {[%clk 0:00:05]}  Bf6 {[%clk 0:00:02]} 34. Kg2 {[%clk 0:00:05]}  Nd6 {[%clk 0:00:01]} 35. Kf3 {[%clk 0:00:04]}  Nf5 {[%clk 0:00:01]} 36. Qc2 {[%clk 0:00:02]}  Ndxe3 {[%clk 0:00:01]} 37. Qc8+ {[%clk 0:00:02]}  Kh7 {[%clk 0:00:01]} 38. Nxf7 {[%clk 0:00:02]}  Kg6 {[%clk 0:00:01]} 39. Ne5+ {[%clk 0:00:01]}  Bxe5 {[%clk 0:00:01]} 40. Bxe5 {[%clk 0:00:01]}  Nd5 {[%clk 0:00:01]} 41. Ke4 {[%clk 0:00:01]}  Kf7 {[%clk 0:00:01]} 42. Kd3 {[%clk 0:00:02]}  Nxf4+ {[%clk 0:00:01]} 0-1


[Site "https://www.chess.com"]

[Event "Titled Tuesday Blitz August 09 Early 2022"]
[White "Rose, Felix"]
[Black "Khabinets, Ivan"]
[WhiteFideId "5105722"]
[BlackFideId "14115980"]
[WhiteElo "2039"]
[BlackElo "2114"]
[Result "0-1"]
[Round "09"]
[TimeControl "180+1"]
[Date "2022.08.09"]
[WhiteClock "0:00:05"]
[BlackClock "0:00:38"]

1. e4 {[%clk 0:02:59]}  c5 {[%clk 0:02:42]} 2. Nf3 {[%clk 0:02:58]}  Nc6 {[%clk 0:02:42]} 3. d4 {[%clk 0:02:58]}  cxd4 {[%clk 0:02:43]} 4. Nxd4 {[%clk 0:02:58]}  Nf6 {[%clk 0:02:43]} 5. Nc3 {[%clk 0:02:58]}  e5 {[%clk 0:02:44]} 6. Ndb5 {[%clk 0:02:58]}  d6 {[%clk 0:02:45]} 7. Bg5 {[%clk 0:02:58]}  a6 {[%clk 0:02:45]} 8. Na3 {[%clk 0:02:58]}  b5 {[%clk 0:02:46]} 9. Nd5 {[%clk 0:02:58]}  Be7 {[%clk 0:02:46]} 10. Bxf6 {[%clk 0:02:58]}  Bxf6 {[%clk 0:02:47]} 11. c3 {[%clk 0:02:59]}  O-O {[%clk 0:02:46]} 12. Nc2 {[%clk 0:02:59]}  Rb8 {[%clk 0:02:47]} 13. Be2 {[%clk 0:02:58]}  Bg5 {[%clk 0:02:43]} 14. O-O {[%clk 0:02:58]}  Be6 {[%clk 0:02:44]} 15. Ncb4 {[%clk 0:02:46]}  Nxb4 {[%clk 0:02:41]} 16. Nxb4 {[%clk 0:02:45]}  Qb6 {[%clk 0:02:37]} 17. Nd5 {[%clk 0:02:40]}  Qc5 {[%clk 0:02:37]} 18. b4 {[%clk 0:02:25]}  Qc8 {[%clk 0:02:34]} 19. a4 {[%clk 0:02:17]}  Bxd5 {[%clk 0:02:28]} 20. Qxd5 {[%clk 0:02:16]}  Qxc3 {[%clk 0:02:28]} 21. axb5 {[%clk 0:02:16]}  axb5 {[%clk 0:02:27]} 22. Bxb5 {[%clk 0:02:01]}  Qxb4 {[%clk 0:02:26]} 23. Rab1 {[%clk 0:01:57]}  Qa5 {[%clk 0:02:16]} 24. g3 {[%clk 0:01:42]}  Bd8 {[%clk 0:02:00]} 25. Rb3 {[%clk 0:01:29]}  Bb6 {[%clk 0:01:57]} 26. Rfb1 {[%clk 0:01:26]}  Bc5 {[%clk 0:01:57]} 27. Bc4 {[%clk 0:01:14]}  Rxb3 {[%clk 0:01:51]} 28. Rxb3 {[%clk 0:01:14]}  Qe1+ {[%clk 0:01:50]} 29. Kg2 {[%clk 0:01:13]}  Qxf2+ {[%clk 0:01:49]} 30. Kh3 {[%clk 0:01:13]}  h5 {[%clk 0:01:37]} 31. Qd1 {[%clk 0:00:49]}  g6 {[%clk 0:01:33]} 32. Rf3 {[%clk 0:00:48]}  Qd4 {[%clk 0:01:29]} 33. Qf1 {[%clk 0:00:44]}  Qxe4 {[%clk 0:01:05]} 34. Rxf7 {[%clk 0:00:31]}  d5 {[%clk 0:01:05]} 35. Rxf8+ {[%clk 0:00:24]}  Bxf8 {[%clk 0:01:04]} 36. Bd3 {[%clk 0:00:17]}  Qg4+ {[%clk 0:01:04]} 37. Kg2 {[%clk 0:00:17]}  e4 {[%clk 0:01:05]} 38. Be2 {[%clk 0:00:12]}  Qe6 {[%clk 0:01:06]} 39. Qf4 {[%clk 0:00:12]}  Bg7 {[%clk 0:01:03]} 40. Bd1 {[%clk 0:00:09]}  Kh7 {[%clk 0:01:02]} 41. Bb3 {[%clk 0:00:09]}  Qd7 {[%clk 0:00:42]} 42. Qg5 {[%clk 0:00:06]}  d4 {[%clk 0:00:42]} 43. Bd5 {[%clk 0:00:05]}  Qf5 {[%clk 0:00:38]} 0-1


[Site "https://www.chess.com"]

[Event "Titled Tuesday Blitz August 09 Early 2022"]
[White "Rosenberg, Evan S"]
[Black "Dev, Shah"]
[WhiteFideId "2019299"]
[BlackFideId "35019058"]
[WhiteElo "2439"]
[BlackElo "2048"]
[Result "0-1"]
[Round "09"]
[TimeControl "180+1"]
[Date "2022.08.09"]
[WhiteClock "0:00:03"]
[BlackClock "0:00:10"]

1. e4 {[%clk 0:02:59]}  e5 {[%clk 0:02:58]} 2. Bc4 {[%clk 0:02:59]}  Nf6 {[%clk 0:02:57]} 3. d3 {[%clk 0:02:59]}  Nc6 {[%clk 0:02:55]} 4. Nc3 {[%clk 0:02:58]}  Bb4 {[%clk 0:02:54]} 5. Ne2 {[%clk 0:02:56]}  d5 {[%clk 0:02:52]} 6. exd5 {[%clk 0:02:55]}  Nxd5 {[%clk 0:02:53]} 7. O-O {[%clk 0:02:55]}  Nxc3 {[%clk 0:02:53]} 8. Nxc3 {[%clk 0:02:54]}  O-O {[%clk 0:02:52]} 9. Qh5 {[%clk 0:02:35]}  Nd4 {[%clk 0:02:34]} 10. Bg5 {[%clk 0:02:19]}  Qe8 {[%clk 0:02:21]} 11. Nd5 {[%clk 0:02:08]}  Bd6 {[%clk 0:02:18]} 12. c3 {[%clk 0:02:05]}  Ne6 {[%clk 0:02:14]} 13. Bf6 {[%clk 0:01:39]}  c6 {[%clk 0:02:08]} 14. Bxg7 {[%clk 0:01:38]}  cxd5 {[%clk 0:01:09]} 15. Bxf8 {[%clk 0:01:37]}  Bxf8 {[%clk 0:01:06]} 16. Bxd5 {[%clk 0:01:34]}  Nf4 {[%clk 0:01:06]} 17. Qg5+ {[%clk 0:01:31]}  Bg7 {[%clk 0:01:07]} 18. Be4 {[%clk 0:01:27]}  h6 {[%clk 0:01:07]} 19. Qh4 {[%clk 0:01:20]}  f5 {[%clk 0:01:07]} 20. Bf3 {[%clk 0:01:15]}  Nxd3 {[%clk 0:01:06]} 21. Qc4+ {[%clk 0:01:13]}  Be6 {[%clk 0:01:01]} 22. Qxd3 {[%clk 0:01:09]}  e4 {[%clk 0:01:01]} 23. Bxe4 {[%clk 0:01:09]}  fxe4 {[%clk 0:01:02]} 24. Qxe4 {[%clk 0:01:09]}  Qf7 {[%clk 0:01:02]} 25. Rfe1 {[%clk 0:01:03]}  Bxa2 {[%clk 0:00:58]} 26. Qe7 {[%clk 0:00:57]}  Qxe7 {[%clk 0:00:29]} 27. Rxe7 {[%clk 0:00:56]}  Bd5 {[%clk 0:00:30]} 28. Ra5 {[%clk 0:00:47]}  Bc6 {[%clk 0:00:28]} 29. Rf5 {[%clk 0:00:44]}  Rd8 {[%clk 0:00:24]} 30. h3 {[%clk 0:00:42]}  Rd2 {[%clk 0:00:20]} 31. Rff7 {[%clk 0:00:40]}  Bf8 {[%clk 0:00:18]} 32. Rxf8+ {[%clk 0:00:22]}  Kxf8 {[%clk 0:00:18]} 33. Re6 {[%clk 0:00:23]}  Kg7 {[%clk 0:00:18]} 34. b4 {[%clk 0:00:22]}  Rc2 {[%clk 0:00:16]} 35. Re3 {[%clk 0:00:22]}  Bd5 {[%clk 0:00:15]} 36. h4 {[%clk 0:00:18]}  b5 {[%clk 0:00:15]} 37. g4 {[%clk 0:00:15]}  Bc4 {[%clk 0:00:14]} 38. Re7+ {[%clk 0:00:14]}  Kf6 {[%clk 0:00:13]} 39. Rxa7 {[%clk 0:00:14]}  Rxc3 {[%clk 0:00:13]} 40. Ra6+ {[%clk 0:00:14]}  Kg7 {[%clk 0:00:12]} 41. h5 {[%clk 0:00:08]}  Bd5 {[%clk 0:00:10]} 42. Rg6+ {[%clk 0:00:05]}  Kh7 {[%clk 0:00:09]} 43. Rd6 {[%clk 0:00:05]}  Bf3 {[%clk 0:00:09]} 44. Rd4 {[%clk 0:00:03]}  Rc4 {[%clk 0:00:08]} 45. Rd7+ {[%clk 0:00:03]}  Kh8 {[%clk 0:00:09]} 46. Rd8+ {[%clk 0:00:03]}  Kg7 {[%clk 0:00:09]} 47. Rd7+ {[%clk 0:00:04]}  Kf6 {[%clk 0:00:10]} 48. Rd6+ {[%clk 0:00:03]}  Kg5 {[%clk 0:00:10]} 49. Rg6+ {[%clk 0:00:03]}  Kh4 {[%clk 0:00:09]} 50. Rxh6 {[%clk 0:00:02]}  Rc1+ {[%clk 0:00:10]} 51. Kh2 {[%clk 0:00:03]}  Rh1# {[%clk 0:00:10]} 0-1


[Site "https://www.chess.com"]

[Event "Titled Tuesday Blitz August 09 Early 2022"]
[White "Shohat, Yotam"]
[Black "Papasimakopoulos, Alexandros"]
[WhiteFideId "2813955"]
[BlackFideId "4244125"]
[WhiteElo "2119"]
[BlackElo "2357"]
[Result "1-0"]
[Round "09"]
[TimeControl "180+1"]
[Date "2022.08.09"]
[WhiteClock "0:00:04"]
[BlackClock "0:00:33"]

1. e4 {[%clk 0:03:00]}  e6 {[%clk 0:02:49]} 2. d3 {[%clk 0:02:57]}  d5 {[%clk 0:02:49]} 3. Qe2 {[%clk 0:02:57]}  Ne7 {[%clk 0:02:49]} 4. f4 {[%clk 0:02:52]}  c5 {[%clk 0:02:49]} 5. Nf3 {[%clk 0:02:50]}  Nbc6 {[%clk 0:02:49]} 6. g3 {[%clk 0:02:49]}  g6 {[%clk 0:02:47]} 7. c3 {[%clk 0:02:48]}  Bg7 {[%clk 0:02:45]} 8. Bg2 {[%clk 0:02:48]}  O-O {[%clk 0:02:43]} 9. O-O {[%clk 0:02:44]}  b5 {[%clk 0:02:44]} 10. Be3 {[%clk 0:02:28]}  d4 {[%clk 0:02:34]} 11. Bf2 {[%clk 0:02:21]}  e5 {[%clk 0:02:29]} 12. cxd4 {[%clk 0:01:54]}  Nxd4 {[%clk 0:02:23]} 13. Nxd4 {[%clk 0:01:50]}  cxd4 {[%clk 0:02:16]} 14. Nd2 {[%clk 0:01:38]}  f6 {[%clk 0:02:04]} 15. Rac1 {[%clk 0:01:31]}  Be6 {[%clk 0:02:03]} 16. Nb3 {[%clk 0:01:29]}  Qd6 {[%clk 0:02:00]} 17. Nc5 {[%clk 0:01:23]}  Bf7 {[%clk 0:01:55]} 18. fxe5 {[%clk 0:01:08]}  fxe5 {[%clk 0:01:54]} 19. Bh3 {[%clk 0:00:52]}  Nc6 {[%clk 0:01:48]} 20. Be1 {[%clk 0:00:31]}  Bh6 {[%clk 0:01:47]} 21. Bd2 {[%clk 0:00:13]}  Bxd2 {[%clk 0:01:43]} 22. Qxd2 {[%clk 0:00:14]}  Kg7 {[%clk 0:01:35]} 23. Nd7 {[%clk 0:00:14]}  Rfd8 {[%clk 0:01:31]} 24. Rf6 {[%clk 0:00:14]}  Rxd7 {[%clk 0:01:29]} 25. Rxc6 {[%clk 0:00:05]}  Qe7 {[%clk 0:01:23]} 26. Bxd7 {[%clk 0:00:05]}  Qxd7 {[%clk 0:01:24]} 27. Rcd6 {[%clk 0:00:04]}  Qe7 {[%clk 0:01:22]} 28. Qf2 {[%clk 0:00:04]}  Bxa2 {[%clk 0:01:19]} 29. Ra6 {[%clk 0:00:04]}  Bb3 {[%clk 0:01:15]} 30. Rf3 {[%clk 0:00:03]}  Be6 {[%clk 0:01:10]} 31. Qd2 {[%clk 0:00:03]}  Bc8 {[%clk 0:01:10]} 32. Ra1 {[%clk 0:00:02]}  Bg4 {[%clk 0:01:08]} 33. Rff1 {[%clk 0:00:03]}  b4 {[%clk 0:01:08]} 34. Rac1 {[%clk 0:00:02]}  a5 {[%clk 0:01:06]} 35. Rc6 {[%clk 0:00:02]}  Rc8 {[%clk 0:01:02]} 36. Rfc1 {[%clk 0:00:02]}  Rxc6 {[%clk 0:01:02]} 37. Rxc6 {[%clk 0:00:03]}  Bh3 {[%clk 0:00:59]} 38. Qc1 {[%clk 0:00:03]}  Bd7 {[%clk 0:00:40]} 39. Rc7 {[%clk 0:00:04]}  Qd6 {[%clk 0:00:40]} 40. Qc5 {[%clk 0:00:04]}  Qxc5 {[%clk 0:00:40]} 41. Rxc5 {[%clk 0:00:05]}  a4 {[%clk 0:00:40]} 42. Rc7 {[%clk 0:00:04]}  Kf6 {[%clk 0:00:33]} 43. Rxd7 {[%clk 0:00:04]} 1-0


[Site "https://www.chess.com"]

[Event "Titled Tuesday Blitz August 09 Early 2022"]
[White "Shpanko, Nadiia"]
[Black "Mika, Tomasz"]
[WhiteFideId "14132400"]
[BlackFideId "1132970"]
[WhiteElo "2139"]
[BlackElo "2126"]
[Result "1-0"]
[Round "09"]
[TimeControl "180+1"]
[Date "2022.08.09"]
[WhiteClock "0:00:23"]
[BlackClock "0:00:01"]

1. c4 {[%clk 0:03:00]}  e6 {[%clk 0:02:52]} 2. b3 {[%clk 0:03:00]}  d5 {[%clk 0:02:51]} 3. Bb2 {[%clk 0:02:58]}  c5 {[%clk 0:02:51]} 4. cxd5 {[%clk 0:02:57]}  exd5 {[%clk 0:02:51]} 5. Nf3 {[%clk 0:02:55]}  Nf6 {[%clk 0:02:51]} 6. d4 {[%clk 0:02:56]}  Nc6 {[%clk 0:02:48]} 7. e3 {[%clk 0:02:55]}  cxd4 {[%clk 0:02:42]} 8. Nxd4 {[%clk 0:02:55]}  Be7 {[%clk 0:02:41]} 9. Be2 {[%clk 0:02:53]}  O-O {[%clk 0:02:41]} 10. O-O {[%clk 0:02:53]}  Bd7 {[%clk 0:02:33]} 11. Nd2 {[%clk 0:02:52]}  Rc8 {[%clk 0:02:32]} 12. a3 {[%clk 0:02:50]}  Qb6 {[%clk 0:02:28]} 13. N2f3 {[%clk 0:02:42]}  Rfd8 {[%clk 0:02:23]} 14. b4 {[%clk 0:02:40]}  Ne4 {[%clk 0:02:21]} 15. Rc1 {[%clk 0:02:34]}  Bf6 {[%clk 0:02:20]} 16. Qb3 {[%clk 0:02:22]}  Bg4 {[%clk 0:02:16]} 17. Nxc6 {[%clk 0:01:44]}  Rxc6 {[%clk 0:01:59]} 18. Bxf6 {[%clk 0:01:40]}  Rxf6 {[%clk 0:01:55]} 19. Rfd1 {[%clk 0:01:34]}  h6 {[%clk 0:01:16]} 20. Rd4 {[%clk 0:01:24]}  Rfd6 {[%clk 0:00:55]} 21. Rcd1 {[%clk 0:01:20]}  Be6 {[%clk 0:00:54]} 22. Nd2 {[%clk 0:01:15]}  Nf6 {[%clk 0:00:46]} 23. Qd3 {[%clk 0:01:09]}  Rc8 {[%clk 0:00:43]} 24. Bf3 {[%clk 0:01:06]}  Rdc6 {[%clk 0:00:42]} 25. Nb3 {[%clk 0:00:54]}  Rc3 {[%clk 0:00:25]} 26. Qb1 {[%clk 0:00:53]}  R8c4 {[%clk 0:00:19]} 27. h3 {[%clk 0:00:38]}  Qc7 {[%clk 0:00:11]} 28. Nc5 {[%clk 0:00:30]}  Rxa3 {[%clk 0:00:10]} 29. Rxc4 {[%clk 0:00:28]}  dxc4 {[%clk 0:00:07]} 30. Nxb7 {[%clk 0:00:25]}  c3 {[%clk 0:00:06]} 31. Rd8+ {[%clk 0:00:24]}  Qxd8 {[%clk 0:00:03]} 32. Nxd8 {[%clk 0:00:25]}  Bb3 {[%clk 0:00:03]} 33. Qc1 {[%clk 0:00:23]}  Ra1 {[%clk 0:00:01]} 34. Qxa1 {[%clk 0:00:23]} 1-0


[Site "https://www.chess.com"]

[Event "Titled Tuesday Blitz August 09 Early 2022"]
[White "Siva Mahadevan"]
[Black "Korchmar, Vasiliy"]
[WhiteFideId "25043153"]
[BlackFideId "24131750"]
[WhiteElo "2203"]
[BlackElo "2370"]
[Result "1-0"]
[Round "09"]
[TimeControl "180+1"]
[Date "2022.08.09"]
[WhiteClock "0:00:11"]
[BlackClock "0:00:02"]

1. e4 {[%clk 0:03:00]}  c5 {[%clk 0:02:57]} 2. Nf3 {[%clk 0:02:59]}  d6 {[%clk 0:02:54]} 3. d4 {[%clk 0:02:59]}  cxd4 {[%clk 0:02:55]} 4. Nxd4 {[%clk 0:03:00]}  Nf6 {[%clk 0:02:56]} 5. Nc3 {[%clk 0:03:00]}  Nc6 {[%clk 0:02:56]} 6. Bg5 {[%clk 0:03:01]}  Bd7 {[%clk 0:02:55]} 7. Qd2 {[%clk 0:03:01]}  a6 {[%clk 0:02:55]} 8. O-O-O {[%clk 0:03:01]}  e6 {[%clk 0:02:56]} 9. f3 {[%clk 0:03:01]}  Nxd4 {[%clk 0:02:52]} 10. Qxd4 {[%clk 0:03:01]}  Be7 {[%clk 0:02:47]} 11. h4 {[%clk 0:03:02]}  Qc7 {[%clk 0:02:40]} 12. Kb1 {[%clk 0:03:01]}  b5 {[%clk 0:02:39]} 13. h5 {[%clk 0:03:01]}  h6 {[%clk 0:02:35]} 14. Be3 {[%clk 0:03:01]}  O-O {[%clk 0:02:33]} 15. g4 {[%clk 0:03:00]}  b4 {[%clk 0:02:33]} 16. Ne2 {[%clk 0:02:49]}  Rfc8 {[%clk 0:02:32]} 17. Qd2 {[%clk 0:02:49]}  d5 {[%clk 0:02:27]} 18. e5 {[%clk 0:02:43]}  Nh7 {[%clk 0:02:23]} 19. f4 {[%clk 0:02:37]}  a5 {[%clk 0:02:08]} 20. Nd4 {[%clk 0:02:37]}  a4 {[%clk 0:02:08]} 21. Bd3 {[%clk 0:02:36]}  b3 {[%clk 0:01:57]} 22. cxb3 {[%clk 0:02:19]}  axb3 {[%clk 0:01:57]} 23. Nxb3 {[%clk 0:02:20]}  Qb7 {[%clk 0:01:25]} 24. Rc1 {[%clk 0:02:17]}  Rcb8 {[%clk 0:01:25]} 25. Qc2 {[%clk 0:02:03]}  Rxa2 {[%clk 0:01:21]} 26. Bxh7+ {[%clk 0:01:32]}  Kh8 {[%clk 0:01:21]} 27. Kxa2 {[%clk 0:01:32]}  Ba4 {[%clk 0:01:20]} 28. Qd3 {[%clk 0:01:32]}  Bxb3+ {[%clk 0:01:19]} 29. Kb1 {[%clk 0:01:31]}  Qa8 {[%clk 0:01:18]} 30. Rc8+ {[%clk 0:01:21]}  Rxc8 {[%clk 0:01:18]} 31. Qxb3 {[%clk 0:01:22]}  Kxh7 {[%clk 0:01:18]} 32. Rc1 {[%clk 0:01:16]}  Rb8 {[%clk 0:01:18]} 33. Qd3+ {[%clk 0:01:09]}  Kg8 {[%clk 0:01:18]} 34. g5 {[%clk 0:01:09]}  hxg5 {[%clk 0:01:05]} 35. fxg5 {[%clk 0:01:10]}  Qa4 {[%clk 0:00:47]} 36. g6 {[%clk 0:01:00]}  Ra8 {[%clk 0:00:41]} 37. gxf7+ {[%clk 0:00:49]}  Kf8 {[%clk 0:00:41]} 38. Rc7 {[%clk 0:00:34]}  Qa1+ {[%clk 0:00:27]} 39. Kc2 {[%clk 0:00:33]}  Rb8 {[%clk 0:00:25]} 40. Bd4 {[%clk 0:00:20]}  Qh1 {[%clk 0:00:09]} 41. Rxe7 {[%clk 0:00:11]}  Kxe7 {[%clk 0:00:06]} 42. Bc5+ {[%clk 0:00:10]}  Kd7 {[%clk 0:00:06]} 43. f8=Q {[%clk 0:00:09]}  Rxf8 {[%clk 0:00:04]} 44. Qb5+ {[%clk 0:00:10]}  Kc7 {[%clk 0:00:02]} 45. Bd6+ {[%clk 0:00:11]}  Kd8 {[%clk 0:00:02]} 46. Qb8+ {[%clk 0:00:11]} 1-0


[Site "https://www.chess.com"]